fUSD/lending_fUSD_20241225
["ID","MTS","AMOUNT","RATE_DAILY","PERIOD"]
[346618108,1735127461571,-500.0,0.0001227,2]
[346618109,1735127461584,-500.0,0.0001227,2]
[346618110,1735127461593,-500.0,0.0001227,2]
[346618111,1735127461602,-500.0,0.0001227,2]
[346618112,1735127461611,-500.0,0.0001227,2]
[346618113,1735127461622,-811.95,0.0001227,2]
[346618114,1735127461631,-660.43,0.0001227,2]
[346618115,1735127461640,-500.0,0.0001227,2]
[346618116,1735127461650,-853.07,0.0001227,2]
[346618117,1735127461659,-882.1,0.0001227,2]
[346618118,1735127461668,-500.0,0.0001227,2]
[346618119,1735127461677,-1100.96,0.0001227,2]
[346618120,1735127461687,-635.49,0.0001227,2]
[346618121,1735127461696,-500.0,0.0001227,2]
[346618122,1735127461705,-659.11,0.0001227,2]
[346618123,1735127461714,-2784.47,0.0001227,2]
[346618124,1735127461723,-560.83,0.0001227,2]
[346618125,1735127461732,-529.17,0.0001227,2]
[346618126,1735127461745,-1887.14,0.0001227,2]
[346618127,1735127461754,-500.0,0.0001227,2]
[346618128,1735127461763,-500.0,0.0001227,2]
[346618129,1735127461773,-1073.5,0.0001227,2]
[346618130,1735127461782,-923.69,0.0001227,2]
[346618131,1735127461792,-500.0,0.0001227,2]
[346618132,1735127461802,-871.16,0.0001227,2]
[346618133,1735127461811,-871.29,0.0001227,2]
[346618134,1735127461820,-997.59,0.0001227,2]
[346618135,1735127461830,-500.0,0.0001227,2]
[346618136,1735127461839,-500.0,0.0001227,2]
[346618137,1735127461848,-500.0,0.0001227,2]
[346618138,1735127461858,-1899.52,0.0001227,2]
[346618139,1735127461867,-1011.4,0.0001227,2]
[346618140,1735127461876,-500.0,0.0001227,2]
[346618141,1735127461886,-1356.28,0.0001227,2]
[346618142,1735127461895,-612.88,0.0001227,2]
[346618143,1735127461904,-500.0,0.0001227,2]
[346618144,1735127461914,-500.0,0.0001227,2]
[346618145,1735127461923,-1419.61,0.0001227,2]
[346618146,1735127461932,-1207.47,0.0001227,2]
[346618147,1735127461941,-500.0,0.0001227,2]
[346618148,1735127461951,-500.0,0.0001227,2]
[346618149,1735127461960,-500.0,0.0001227,2]
[346618150,1735127461970,-543.33,0.0001227,2]
[346618151,1735127461979,-500.0,0.0001227,2]
[346618152,1735127461989,-500.0,0.0001227,2]
[346618153,1735127461999,-500.0,0.0001227,2]
[346618154,1735127462008,-500.0,0.0001227,2]
[346618155,1735127462017,-500.0,0.0001227,2]
[346618156,1735127462027,-500.0,0.0001227,2]
[346618157,1735127462035,-500.0,0.0001227,2]
[346618158,1735127462044,-500.0,0.0001227,2]
[346618159,1735127462054,-824.81,0.0001227,2]
[346618160,1735127462064,-500.0,0.0001227,2]
[346618161,1735127462074,-1040.1,0.0001227,2]
[346618162,1735127462085,-500.0,0.0001227,2]
[346618163,1735127462094,-872.12,0.0001227,2]
[346618164,1735127462104,-584.82,0.0001227,2]
[346618165,1735127462113,-932.18,0.00012328,2]
[346618166,1735127462123,-932.18,0.00012328,2]
[346618167,1735127462132,-932.18,0.00012328,2]
[346618168,1735127462141,-932.18,0.00012328,2]
[346618169,1735127462150,-932.18,0.00012328,2]
[346618170,1735127462159,-479.01587159,0.00012328,2]
[346618171,1735127462168,-1304.24,0.00012328,2]
[346618172,1735127462178,-1304.24,0.00012328,2]
[346618173,1735127462187,-1304.24,0.00012328,2]
[346618174,1735127462196,-1304.24,0.00012328,2]
[346618175,1735127462204,-1304.24,0.00012328,2]
[346618176,1735127462213,-1304.24,0.00012328,2]
[346618177,1735127462222,-151.0,0.00012329,2]
[346618178,1735127462231,-151.0,0.00012329,2]
[346618179,1735127462240,-151.0,0.00012329,2]
[346618180,1735127462250,-230.871679,0.00012329,2]
[346618181,1735127462259,-151.0,0.00012329,2]
[346618182,1735127462267,-151.702341,0.00012329,2]
[346618183,1735127462276,-151.0,0.00012329,2]
[346618184,1735127462286,-151.0,0.00012329,2]
[346618185,1735127462295,-151.0,0.00012329,2]
[346618186,1735127462305,-151.0,0.00012329,2]
[346618187,1735127462314,-151.0,0.00012329,2]
[346618188,1735127462324,-151.0,0.00012329,2]
[346618189,1735127462333,-151.0,0.00012329,2]
[346618190,1735127462344,-151.0,0.00012329,2]
[346618191,1735127462354,-151.0,0.00012329,2]
[346618192,1735127462365,-181.419842,0.00012329,2]
[346618193,1735127462374,-378.837545,0.00012329,2]
[346618194,1735127462383,-378.837545,0.00012329,2]
[346618195,1735127462393,-378.837545,0.00012329,2]
[346618196,1735127462402,-378.837545,0.00012329,2]
[346618197,1735127462411,-378.837545,0.00012329,2]
[346618198,1735127462421,-378.837545,0.00012329,2]
[346618199,1735127462431,-151.0,0.00012329,2]
[346618200,1735127462441,-283.286464,0.00012329,2]
[346618201,1735127462451,-223.391912,0.00012329,2]
[346618202,1735127462461,-223.391912,0.00012329,2]
[346618203,1735127462470,-223.391912,0.00012329,2]
[346618204,1735127462480,-223.391912,0.00012329,2]
[346618205,1735127462489,-223.391912,0.00012329,2]
[346618206,1735127462500,-223.391912,0.00012329,2]
[346618207,1735127462509,-500.0,0.00012379,2]
[346618208,1735127462519,-742.98,0.00012379,2]
[346618209,1735127462528,-992.77,0.00012379,2]
[346618210,1735127462537,-2012.95,0.00012379,2]
[346618211,1735127462546,-1891.68,0.00012379,2]
[346618212,1735127462555,-16159.23,0.00012379,2]
[346618213,1735127462566,-1453.31,0.00012379,2]
[346618214,1735127462579,-761.63,0.00012379,2]
[346618215,1735127462589,-545.79,0.00012379,2]
[346618216,1735127462599,-1354.29,0.00012379,2]
[346618217,1735127462608,-14537.19,0.00012379,2]
[346618218,1735127462618,-500.0,0.00012379,2]
[346618219,1735127462629,-1480.31,0.00012379,2]
[346618220,1735127462639,-1290.32,0.00012379,2]
[346618221,1735127462649,-596.39,0.00012379,2]
[346618222,1735127462658,-2589.36,0.00012379,2]
[346618223,1735127462666,-500.0,0.00012379,2]
[346618224,1735127462677,-500.0,0.00012379,2]
[346618225,1735127462686,-1000.0,0.00012379,2]
[346618226,1735127462695,-1079.04,0.00012379,2]
[346618227,1735127462704,-656.4,0.00012379,2]
[346618228,1735127462713,-500.0,0.0001238,2]
[346618229,1735127462722,-500.0,0.0001238,2]
[346618230,1735127462732,-520.55,0.0001238,2]
[346618231,1735127462744,-500.0,0.0001238,2]
[346618232,1735127462753,-500.0,0.0001238,2]
[346618233,1735127462762,-500.0,0.0001238,2]
[346618234,1735127462771,-500.0,0.0001238,2]
[346618235,1735127462780,-563.72,0.0001238,2]
[346618236,1735127462789,-500.0,0.0001238,2]
[346618237,1735127462798,-500.0,0.0001238,2]
[346618238,1735127462807,-500.0,0.0001238,2]
[346618239,1735127462816,-500.0,0.0001238,2]
[346618240,1735127462825,-500.0,0.0001238,2]
[346618241,1735127462839,-500.0,0.0001238,2]
[346618242,1735127462848,-500.0,0.0001238,2]
[346618243,1735127462858,-500.0,0.0001238,2]
[346618244,1735127462867,-500.0,0.0001238,2]
[346618245,1735127462876,-553.83,0.0001238,2]
[346618246,1735127462886,-500.0,0.0001238,2]
[346618247,1735127462895,-360.71997833,0.0001238,2]
[346618248,1735127462904,-613.47,0.0001238,2]
[346618249,1735127462913,-595.49,0.0001238,2]
[346618250,1735127462921,-500.0,0.0001238,2]
[346618251,1735127462930,-500.0,0.0001238,2]
[346618252,1735127462939,-602.72998761,0.0001238,2]
[346618253,1735127462948,-1086.12,0.0001238,2]
[346618254,1735127462957,-500.0,0.0001238,2]
[346618255,1735127462966,-705.77,0.0001238,2]
[346618256,1735127462975,-500.0,0.0001238,2]
[346618257,1735127462984,-500.0,0.0001238,2]
[346618258,1735127462994,-500.0,0.0001238,2]
[346618259,1735127463004,-573.15,0.0001238,2]
[346618260,1735127463013,-500.0,0.0001238,2]
[346618261,1735127463022,-500.0,0.0001238,2]
[346618262,1735127463032,-500.0,0.0001238,2]
[346618263,1735127463042,-500.0,0.0001238,2]
[346618264,1735127463051,-500.0,0.0001238,2]
[346618265,1735127463061,-500.0,0.0001238,2]
[346618266,1735127463071,-500.0,0.0001238,2]
[346618267,1735127463080,-500.0,0.0001238,2]
[346618268,1735127463090,-500.0,0.0001238,2]
[346618269,1735127463099,-639.82547818,0.0001238,2]
[346618270,1735127463108,-500.0,0.0001238,2]
[346618271,1735127463117,-500.0,0.0001238,2]
[346618272,1735127463127,-500.0,0.0001238,2]
[346618273,1735127463135,-500.0,0.0001238,2]
[346618274,1735127463144,-500.0,0.0001238,2]
[346618275,1735127463153,-652.22,0.0001238,2]
[346618276,1735127463162,-500.0,0.0001238,2]
[346618277,1735127463172,-505.35353335,0.0001238,2]
[346618278,1735127463181,-647.3,0.0001238,2]
[346618279,1735127463190,-500.0,0.0001238,2]
[346618280,1735127463199,-971.03,0.0001238,2]
[346618281,1735127463209,-500.0,0.0001238,2]
[346618282,1735127463218,-500.0,0.0001238,2]
[346618283,1735127463227,-500.0,0.0001238,2]
[346618284,1735127463236,-608.5,0.0001238,2]
[346618285,1735127463250,-500.0,0.0001238,2]
[346618286,1735127463260,-302.64315566,0.0001238,2]
[346618287,1735127463269,-500.0,0.0001238,2]
[346618288,1735127463278,-500.0,0.0001238,2]
[346618289,1735127463287,-548.75,0.0001238,2]
[346618290,1735127463297,-500.0,0.0001238,2]
[346618291,1735127463306,-500.0,0.0001238,2]
[346618292,1735127463315,-932.18,0.0001238,2]
[346618293,1735127463324,-500.0,0.0001238,2]
[346618294,1735127463334,-535.06,0.0001238,2]
[346618295,1735127463344,-500.0,0.0001238,2]
[346618296,1735127463353,-500.0,0.0001238,2]
[346618297,1735127463363,-500.0,0.0001238,2]
[346618298,1735127463372,-500.0,0.0001238,2]
[346618299,1735127463381,-537.48,0.0001238,2]
[346618300,1735127463391,-509.17,0.0001238,2]
[346618301,1735127463400,-500.0,0.0001238,2]
[346618302,1735127463410,-500.0,0.0001238,2]
[346618303,1735127463419,-500.0,0.0001238,2]
[346618304,1735127463429,-500.0,0.0001238,2]
[346618305,1735127463438,-500.0,0.0001238,2]
[346618306,1735127463447,-560.69,0.0001238,2]
[346618307,1735127463457,-500.0,0.0001238,2]
[346618308,1735127463466,-500.0,0.0001238,2]
[346618309,1735127463475,-840.12,0.0001238,2]
[346618310,1735127463484,-500.0,0.0001238,2]
[346618311,1735127463496,-500.0,0.0001238,2]
[346618312,1735127463505,-500.0,0.0001238,2]
[346618313,1735127463515,-500.0,0.0001238,2]
[346618314,1735127463525,-500.0,0.0001238,2]
[346618315,1735127463535,-500.0,0.0001238,2]
[346618316,1735127463545,-693.24,0.0001238,2]
[346618317,1735127463554,-500.0,0.0001238,2]
[346618318,1735127463563,-500.0,0.0001238,2]
[346618319,1735127463576,-629.87,0.0001238,2]
[346618320,1735127463586,-816.1,0.0001238,2]
[346618321,1735127463596,-500.0,0.0001238,2]
[346618322,1735127463606,-776.37,0.0001238,2]
[346618323,1735127463619,-501.98685474,0.0001238,2]
[346618324,1735127463629,-500.0,0.0001238,2]
[346618325,1735127463639,-500.0,0.0001238,2]
[346618326,1735127463650,-500.0,0.0001238,2]
[346618327,1735127463659,-506.99,0.0001238,2]
[346618328,1735127463671,-500.0,0.0001238,2]
[346618329,1735127463681,-500.0,0.0001238,2]
[346618330,1735127463690,-719.32,0.0001238,2]
[346618331,1735127463700,-500.0,0.0001238,2]
[346618332,1735127463711,-503.97,0.0001238,2]
[346618333,1735127463721,-500.0,0.0001238,2]
[346618334,1735127463731,-500.0,0.0001238,2]
[346618335,1735127463741,-500.0,0.0001238,2]
[346618336,1735127463754,-799.41,0.0001238,2]
[346618337,1735127463764,-500.0,0.0001238,2]
[346618338,1735127463773,-500.0,0.0001238,2]
[346618339,1735127463782,-828.69,0.0001238,2]
[346618340,1735127463792,-1353.54,0.0001238,2]
[346618341,1735127463801,-500.0,0.0001238,2]
[346618342,1735127463811,-500.0,0.0001238,2]
[346618343,1735127463820,-500.0,0.0001238,2]
[346618344,1735127463830,-883.71,0.0001238,2]
[346618345,1735127463839,-500.0,0.0001238,2]
[346618346,1735127463849,-500.0,0.0001238,2]
[346618347,1735127463858,-871.34,0.0001238,2]
[346618348,1735127463868,-500.0,0.0001238,2]
[346618349,1735127463878,-500.0,0.0001238,2]
[346618350,1735127463888,-500.0,0.0001238,2]
[346618351,1735127463898,-500.0,0.0001238,2]
[346618352,1735127463908,-500.0,0.0001238,2]
[346618353,1735127463918,-564.78,0.0001238,2]
[346618354,1735127463927,-500.0,0.0001238,2]
[346618355,1735127463936,-500.0,0.0001238,2]
[346618356,1735127463946,-2087.65,0.0001238,2]
[346618357,1735127463956,-500.0,0.0001238,2]
[346618358,1735127463965,-500.0,0.0001238,2]
[346618359,1735127463974,-500.0,0.0001238,2]
[346618360,1735127463984,-500.0,0.0001238,2]
[346618361,1735127463997,-500.0,0.0001238,2]
[346618362,1735127464006,-765.7,0.0001238,2]
[346618363,1735127464016,-500.0,0.0001238,2]
[346618364,1735127464025,-500.0,0.0001238,2]
[346618365,1735127464034,-500.0,0.0001238,2]
[346618366,1735127464044,-500.0,0.0001238,2]
[346618367,1735127464053,-500.0,0.0001238,2]
[346618368,1735127464063,-500.0,0.0001238,2]
[346618369,1735127464072,-500.0,0.0001238,2]
[346618370,1735127464081,-500.0,0.0001238,2]
[346618371,1735127464091,-374.64374815,0.0001238,2]
[346618372,1735127464100,-500.0,0.0001238,2]
[346618373,1735127464109,-500.0,0.0001238,2]
[346618374,1735127464120,-877.6,0.0001238,2]
[346618375,1735127464129,-500.0,0.0001238,2]
[346618376,1735127464139,-500.0,0.0001238,2]
[346618377,1735127464148,-500.0,0.0001238,2]
[346618378,1735127464157,-960.19,0.0001238,2]
[346618379,1735127464166,-3471.41,0.0001238,2]
[346618380,1735127464175,-500.0,0.0001238,2]
[346618381,1735127464184,-500.0,0.0001238,2]
[346618382,1735127464194,-566.44,0.0001238,2]
[346618383,1735127464203,-500.0,0.0001238,2]
[346618384,1735127464213,-770.63,0.0001238,2]
[346618385,1735127464222,-1343.6,0.0001238,2]
[346618386,1735127464231,-500.0,0.0001238,2]
[346618387,1735127464240,-680.0,0.0001238,2]
[346618388,1735127464251,-1183.51,0.0001238,2]
[346618389,1735127464261,-500.0,0.0001238,2]
[346618390,1735127464269,-500.0,0.0001238,2]
[346618391,1735127464278,-1182.22,0.0001238,2]
[346618392,1735127464287,-670.59,0.0001238,2]
[346618393,1735127464297,-500.0,0.0001238,2]
[346618394,1735127464307,-500.0,0.0001238,2]
[346618395,1735127464316,-500.0,0.0001238,2]
[346618396,1735127464326,-5360.85,0.0001238,2]
[346618397,1735127464336,-576.57,0.0001238,2]
[346618398,1735127464345,-500.0,0.0001238,2]
[346618399,1735127464356,-500.0,0.0001238,2]
[346618400,1735127464365,-1223.6,0.0001238,2]
[346618401,1735127464375,-500.0,0.0001238,2]
[346618402,1735127464384,-500.0,0.0001238,2]
[346618403,1735127464394,-500.0,0.0001238,2]
[346618404,1735127464403,-563.31,0.0001238,2]
[346618405,1735127464412,-500.0,0.0001238,2]
[346618406,1735127464422,-500.0,0.0001238,2]
[346618407,1735127464432,-500.0,0.0001238,2]
[346618408,1735127464441,-500.0,0.0001238,2]
[346618409,1735127464451,-500.0,0.0001238,2]
[346618410,1735127464460,-500.0,0.0001238,2]
[346618411,1735127464470,-3239.46,0.0001238,2]
[346618412,1735127464479,-500.0,0.0001238,2]
[346618413,1735127464488,-500.0,0.0001238,2]
[346618414,1735127464500,-684.04,0.0001238,2]
[346618415,1735127464509,-500.0,0.00012381,2]
[346618416,1735127464517,-500.0,0.00012381,2]
[346618417,1735127464528,-500.0,0.00012381,2]
[346618418,1735127464537,-500.0,0.00012381,2]
[346618419,1735127464546,-500.0,0.00012381,2]
[346618420,1735127464555,-538.33,0.00012381,2]
[346618421,1735127464565,-683.15,0.00012381,2]
[346618422,1735127464575,-510.99,0.00012381,2]
[346618423,1735127464585,-1663.82,0.00012381,2]
[346618424,1735127464594,-609.52,0.00012381,2]
[346618425,1735127464604,-1003.15,0.00012381,2]
[346618426,1735127464614,-500.0,0.00012381,2]
[346618427,1735127464624,-500.0,0.00012381,2]
[346618428,1735127464633,-1248.44,0.00012381,2]
[346618429,1735127464642,-500.0,0.00012381,2]
[346618430,1735127464660,-413.04071162,0.00012381,2]
[346618431,1735127464669,-638.36,0.00012381,2]
[346618432,1735127464678,-500.0,0.00012381,2]
[346618433,1735127464686,-500.0,0.00012381,2]
[346618434,1735127464696,-200.12,0.00012384,2]
[346618435,1735127464705,-500.0,0.00012398,2]
[346618436,1735127464714,-1960.6843228,0.00012399,2]
[346618437,1735127464723,-1960.68432275,0.00012399,2]
[346618438,1735127464732,-1960.68432275,0.00012399,2]
[346618439,1735127464743,-1960.68432275,0.00012399,2]
[346618440,1735127464752,-1960.68432275,0.00012399,2]
[346618441,1735127464762,-1960.68432275,0.00012399,2]
[346618442,1735127464771,-1960.68432275,0.00012399,2]
[346618443,1735127464782,-7615.74968222,0.00012399,2]
[346618444,1735127464791,-7615.74968215,0.00012399,2]
[346618445,1735127464801,-7615.74968215,0.00012399,2]
[346618446,1735127464810,-7615.74968215,0.00012399,2]
[346618447,1735127464819,-7615.74968215,0.00012399,2]
[346618448,1735127464828,-7615.74968215,0.00012399,2]
[346618449,1735127464838,-7615.74968215,0.00012399,2]
[346618450,1735127464847,-7615.74968215,0.00012399,2]
[346618451,1735127464857,-223.391912,0.00012399,2]
[346618452,1735127464867,-223.391912,0.00012399,2]
[346618453,1735127464876,-1960.68432275,0.00012431,2]
[346618454,1735127464885,-500.0,0.00012434,2]
[346618455,1735127464894,-262.00043469,0.00012434,2]
[346618456,1735127464904,-500.0,0.00012434,2]
[346618457,1735127464913,-500.0,0.00012434,2]
[346618458,1735127464922,-263.58563343,0.00012434,2]
[346618459,1735127464931,-500.0,0.00012434,2]
[346618460,1735127464940,-500.0,0.00012434,2]
[346618461,1735127464949,-500.0,0.00012434,2]
[346618462,1735127464958,-500.0,0.00012434,2]
[346618463,1735127464969,-500.0,0.00012434,2]
[346618464,1735127464978,-928.86,0.00012434,2]
[346618465,1735127464988,-833.33,0.00012434,2]
[346618466,1735127465000,-500.0,0.00012434,2]
[346618467,1735127465009,-500.0,0.00012434,2]
[346618468,1735127465018,-896.31,0.00012434,2]
[346618469,1735127465027,-2655.7,0.00012434,2]
[346618470,1735127465036,-757.29,0.00012434,2]
[346618471,1735127465045,-500.0,0.00012434,2]
[346618472,1735127465055,-500.0,0.00012434,2]
[346618473,1735127465064,-4923.35,0.00012434,2]
[346618474,1735127465073,-572.89,0.00012434,2]
[346618475,1735127465082,-500.0,0.00012434,2]
[346618476,1735127465091,-378.837545,0.00012434,2]
[346618477,1735127465100,-378.837545,0.00012434,2]
[346618478,1735127465109,-525.33,0.00012434,2]
[346618479,1735127465118,-543.83,0.00012434,2]
[346618480,1735127465128,-243.094773,0.00012434,2]
[346618481,1735127465137,-632.78,0.00012434,2]
[346618482,1735127465146,-500.0,0.00012434,2]
[346618483,1735127465156,-500.0,0.00012434,2]
[346618484,1735127465166,-219.681786,0.00012434,2]
[346618485,1735127465175,-1569.97,0.00012434,2]
[346618486,1735127465184,-832.91,0.00012434,2]
[346618487,1735127465194,-500.0,0.00012434,2]
[346618488,1735127465203,-500.0,0.00012434,2]
[346618489,1735127465213,-500.0,0.00012434,2]
[346618490,1735127465223,-500.0,0.00012434,2]
[346618491,1735127465233,-1793.93,0.00012434,2]
[346618492,1735127465243,-1761.25,0.00012434,2]
[346618493,1735127465253,-500.0,0.00012434,2]
[346618494,1735127465262,-610.53,0.00012434,2]
[346618495,1735127465272,-500.0,0.00012434,2]
[346618496,1735127465281,-671.69,0.00012434,2]
[346618497,1735127465290,-500.0,0.00012434,2]
[346618498,1735127465300,-2899.28,0.00012434,2]
[346618499,1735127465309,-500.0,0.00012434,2]
[346618500,1735127465320,-326.71218992,0.00012434,2]
[346618501,1735127465329,-548.76,0.00012434,2]
[346618502,1735127465339,-2172.9,0.00012434,2]
[346618503,1735127465349,-500.0,0.00012434,2]
[346618504,1735127465358,-500.0,0.00012434,2]
[346618505,1735127465368,-500.0,0.00012434,2]
[346618506,1735127465377,-500.0,0.00012434,2]
[346618507,1735127465387,-1309.3,0.00012434,2]
[346618508,1735127465396,-500.0,0.00012434,2]
[346618509,1735127465406,-759.69,0.00012434,2]
[346618510,1735127465415,-500.0,0.00012434,2]
[346618511,1735127465425,-6709.46,0.00012434,2]
[346618512,1735127465434,-500.0,0.00012434,2]
[346618513,1735127465443,-500.0,0.00012434,2]
[346618514,1735127465454,-500.0,0.00012434,2]
[346618515,1735127465464,-500.0,0.00012434,2]
[346618516,1735127465474,-500.0,0.00012434,2]
[346618517,1735127465484,-500.0,0.00012434,2]
[346618518,1735127465494,-500.0,0.00012434,2]
[346618519,1735127465503,-500.0,0.00012434,2]
[346618520,1735127465513,-500.0,0.00012434,2]
[346618521,1735127465523,-500.0,0.00012434,2]
[346618522,1735127465533,-500.0,0.00012434,2]
[346618523,1735127465543,-500.0,0.00012434,2]
[346618524,1735127465553,-1000.0,0.00012442,2]
[346618525,1735127465565,-361.96,0.00012476,2]
[346618526,1735127465580,-2126.0,0.000125,5]
[346618527,1735127465590,-500.0,0.00012535,2]
[346618528,1735127465600,-500.0,0.00012544,2]
[346618529,1735127465612,-398.58594285,0.00012544,2]
[346618530,1735127465621,-500.0,0.00012544,2]
[346618531,1735127465631,-548.72,0.00012544,2]
[346618532,1735127465641,-500.0,0.00012544,2]
[346618533,1735127465651,-500.0,0.00012544,2]
[346618534,1735127465661,-500.0,0.00012544,2]
[346618535,1735127465671,-500.0,0.00012544,2]
[346618536,1735127465680,-500.0,0.00012544,2]
[346618537,1735127465690,-500.0,0.00012544,2]
[346618538,1735127465700,-500.0,0.00012544,2]
[346618539,1735127465710,-500.0,0.00012544,2]
[346618540,1735127465720,-516.07,0.00012544,2]
[346618541,1735127465729,-500.0,0.00012544,2]
[346618542,1735127465739,-500.0,0.00012544,2]
[346618543,1735127465750,-500.0,0.00012544,2]
[346618544,1735127465761,-500.0,0.00012544,2]
[346618545,1735127465771,-500.0,0.00012544,2]
[346618546,1735127465781,-629.62,0.00012544,2]
[346618547,1735127465790,-500.0,0.00012544,2]
[346618548,1735127465800,-500.82,0.00012544,2]
[346618549,1735127465810,-500.0,0.00012544,2]
[346618550,1735127465820,-500.0,0.00012544,2]
[346618551,1735127465829,-868.96,0.00012544,2]
[346618552,1735127465839,-500.0,0.00012544,2]
[346618553,1735127465849,-614.43,0.00012544,2]
[346618554,1735127465860,-500.0,0.00012544,2]
[346618555,1735127465869,-500.0,0.00012544,2]
[346618556,1735127465879,-500.0,0.00012544,2]
[346618557,1735127465889,-599.20028156,0.00012544,2]
[346618558,1735127465899,-500.0,0.00012544,2]
[346618559,1735127465908,-500.0,0.00012544,2]
[346618560,1735127465918,-500.0,0.00012544,2]
[346618561,1735127465928,-500.0,0.00012544,2]
[346618562,1735127465938,-500.0,0.00012544,2]
[346618563,1735127465948,-536.85,0.00012544,2]
[346618564,1735127465958,-500.0,0.00012544,2]
[346618565,1735127465967,-500.0,0.00012544,2]
[346618566,1735127465977,-500.0,0.00012544,2]
[346618567,1735127465986,-500.0,0.00012544,2]
[346618568,1735127465997,-1304.24,0.00012544,2]
[346618569,1735127466006,-500.0,0.00012544,2]
[346618570,1735127466016,-500.0,0.00012544,2]
[346618571,1735127466026,-500.0,0.00012544,2]
[346618572,1735127466037,-653.26,0.00012544,2]
[346618573,1735127466049,-500.0,0.00012544,2]
[346618574,1735127466061,-500.0,0.00012544,2]
[346618575,1735127466070,-500.0,0.00012544,2]
[346618576,1735127466081,-500.0,0.00012544,2]
[346618577,1735127466090,-500.0,0.00012544,2]
[346618578,1735127466101,-811.95,0.00012544,2]
[346618579,1735127466111,-660.43,0.00012544,2]
[346618580,1735127466121,-500.0,0.00012544,2]
[346618581,1735127466130,-853.07,0.00012544,2]
[346618582,1735127466140,-882.1,0.00012544,2]
[346618583,1735127466150,-222.34573237,0.00012544,2]
[346618584,1735127466160,-1100.96,0.00012544,2]
[346618585,1735127466171,-635.49,0.00012544,2]
[346618586,1735127466183,-500.0,0.00012544,2]
[346618587,1735127466193,-659.11,0.00012544,2]
[346618588,1735127466203,-2784.47,0.00012544,2]
[346618589,1735127466212,-560.83,0.00012544,2]
[346618590,1735127466223,-529.17,0.00012544,2]
[346618591,1735127466232,-1887.14,0.00012544,2]
[346618592,1735127466242,-500.0,0.00012544,2]
[346618593,1735127466252,-500.0,0.00012544,2]
[346618594,1735127466262,-1073.5,0.00012544,2]
[346618595,1735127466272,-923.69,0.00012544,2]
[346618596,1735127466282,-500.0,0.00012544,2]
[346618597,1735127466292,-871.16,0.00012544,2]
[346618598,1735127466301,-871.29,0.00012544,2]
[346618599,1735127466311,-997.59,0.00012544,2]
[346618600,1735127466320,-500.0,0.00012544,2]
[346618601,1735127466330,-500.0,0.00012544,2]
[346618602,1735127466340,-500.0,0.00012544,2]
[346618603,1735127466352,-1899.52,0.00012544,2]
[346618604,1735127466361,-1011.4,0.00012544,2]
[346618605,1735127466371,-500.0,0.00012544,2]
[346618606,1735127466381,-1356.28,0.00012544,2]
[346618607,1735127466391,-612.88,0.00012544,2]